fUST/lending_fUST_20240911
["ID","MTS","AMOUNT","RATE_DAILY","PERIOD"]
[337738611,1726003655234,-449.849696,0.00038889,14]
[337738612,1726003655254,-1592.433786,0.00038889,14]
[337738613,1726003655274,-449.849696,0.00038889,14]
[337738614,1726003655294,-1592.433786,0.00038889,14]
[337738615,1726003655315,-151.0,0.00038889,14]
[337738616,1726003655334,-151.0,0.00038889,14]
[337738617,1726003655354,-10000.0,0.00038889,14]
[337738618,1726003655374,-10000.0,0.00038889,14]
[337738619,1726003655394,-21045.91,0.00038889,3]
[337738620,1726003655415,-10000.0,0.00038889,14]
[337738621,1726003655436,-187.707032,0.00038889,14]
[337738622,1726003655457,-187.707032,0.00038889,14]
[337738623,1726003655480,-863.533871,0.00038889,14]
[337738624,1726003655505,-5307.45523787,0.0003889,31]
[337738625,1726003655528,-365.0,0.0003889,3]
[337738626,1726003655550,-251.928547,0.0003889,14]
[337738627,1726003655580,-251.928547,0.0003889,14]
[337738628,1726003655604,-170.340205,0.0003889,14]
[337738629,1726003655625,-170.340205,0.0003889,14]
[337738630,1726003655648,-170.340205,0.0003889,14]
[337738631,1726003655672,-170.340205,0.0003889,14]
[337738632,1726003655695,-151.0,0.0003889,14]
[337738633,1726003655719,-374.073339,0.0003889,14]
[337738634,1726003655742,-374.073339,0.0003889,14]
[337738635,1726003655765,-240.666306,0.0003889,14]
[337738636,1726003655788,-227.838053,0.0003889,14]
[337738637,1726003655814,-240.666306,0.0003889,14]
[337738638,1726003655834,-298.86099,0.0003889,14]
[337738639,1726003655855,-227.838053,0.0003889,14]
[337738640,1726003655876,-501.899553,0.0003889,14]
[337738641,1726003655896,-152.36219,0.0003889,14]
[337738642,1726003655917,-501.899553,0.0003889,14]
[337738643,1726003655938,-449.849696,0.0003889,14]
[337738644,1726003655959,-1592.433786,0.0003889,14]
[337738645,1726003655979,-449.849696,0.0003889,14]
[337738646,1726003656005,-1592.433786,0.0003889,14]
[337738647,1726003656025,-151.0,0.0003889,14]
[337738648,1726003656047,-151.0,0.0003889,14]
[337738649,1726003656069,-151.42381,0.0003889,14]
[337738650,1726003656090,-10000.0,0.0003889,14]
[337738651,1726003656112,-10000.0,0.0003889,14]
[337738652,1726003656135,-10000.0,0.0003889,14]
[337738653,1726003656159,-187.707032,0.0003889,14]
[337738654,1726003656180,-187.707032,0.0003889,14]
[337738655,1726003656201,-863.533871,0.0003889,14]
[337738656,1726003656221,-700.0,0.00038897,7]
[337738657,1726003656244,-500.0,0.00038898,15]
[337738658,1726003656266,-500.0,0.00038898,15]
[337738659,1726003656286,-500.0,0.00038898,15]
[337738660,1726003656307,-399.985,0.00038898,15]
[337738661,1726003656522,-329.4552543,0.00038898,15]
[337738662,1726003656555,-500.0,0.00038898,15]
[337738663,1726003656578,-409.30920939,0.00038898,15]
[337738664,1726003656604,-5390.64903262,0.00038899,31]
[337738665,1726003656629,-251.928547,0.00038899,14]
[337738666,1726003656654,-170.340205,0.00038899,14]
[337738667,1726003656677,-170.340205,0.00038899,14]
[337738668,1726003656699,-151.0,0.00038899,14]
[337738669,1726003656722,-374.073339,0.00038899,14]
[337738670,1726003656744,-374.073339,0.00038899,14]
[337738671,1726003656765,-240.666306,0.00038899,14]
[337738672,1726003656786,-227.838053,0.00038899,14]
[337738673,1726003656807,-240.666306,0.00038899,14]
[337738674,1726003656828,-227.838053,0.00038899,14]
[337738675,1726003656850,-501.899553,0.00038899,14]
[337738676,1726003656871,-501.899553,0.00038899,14]
[337738677,1726003656893,-1039.9,0.00038899,2]
[337738678,1726003656913,-449.849696,0.00038899,14]
[337738679,1726003656934,-449.849696,0.00038899,14]
[337738680,1726003656955,-1592.433786,0.00038899,14]
[337738681,1726003656976,-1592.433786,0.00038899,14]
[337738682,1726003656997,-449.849696,0.00038899,14]
[337738683,1726003657018,-449.849696,0.00038899,14]
[337738684,1726003657039,-1592.433786,0.00038899,14]
[337738685,1726003657060,-1592.433786,0.00038899,14]
[337738686,1726003657081,-151.0,0.00038899,14]
[337738687,1726003657102,-151.0,0.00038899,14]
[337738688,1726003657124,-151.0,0.00038899,14]
[337738689,1726003657145,-151.0,0.00038899,14]
[337738690,1726003657168,-10000.0,0.00038899,14]
[337738691,1726003657189,-10000.0,0.00038899,14]
[337738692,1726003657210,-10000.0,0.00038899,14]
[337738693,1726003657235,-10000.0,0.00038899,14]
[337738694,1726003657257,-6297.88066918,0.00038899,14]
[337738696,1726003719937,614.15977698,0.00014,4]
[337738697,1726003762148,-163.310797,0.00017808,2]
[337738698,1726003762171,-750.39852183,0.00035,2]
[337738699,1726003762192,-505.98772462,0.00035,7]
[337738746,1726003832327,-258.89663134,0.0003624,2]
[337738747,1726003832337,-600.0,0.00037619,7]
[337738748,1726003832346,-600.0,0.00037624,7]
[337738749,1726003832356,-574.52275393,0.00037835,7]
[337738750,1726003832369,-25.47724607,0.00037835,7]
[337738751,1726003832379,-160.0,0.00038022,3]
[337738752,1726003832390,-600.0,0.00038059,7]
[337738753,1726003832400,-700.0,0.00038241,7]
[337738754,1726003832409,-700.0,0.00038256,7]
[337738755,1726003832419,-600.0,0.00038279,7]
[337738756,1726003832429,-600.0,0.00038438,7]
[337738757,1726003832438,-600.0,0.00038578,7]
[337738758,1726003832448,-700.0,0.00038584,7]
[337738759,1726003832457,-624.52275393,0.00038648,7]
[337738781,1726003838426,-75.47724607,0.00038648,7]
[337738783,1726003838435,-153.0,0.00038693,2]
[337738784,1726003838444,-700.0,0.00038766,7]
[337738786,1726003838454,-1392.59676136,0.00038789,2]
[337738788,1726003838463,-1000.0,0.000388,2]
[337738789,1726003838472,-600.0,0.00038802,7]
[337738790,1726003838481,-432.766093,0.00038878,14]
[337738791,1726003838490,-432.766093,0.00038878,14]
[337738792,1726003838500,-388.111262,0.00038878,14]
[337738793,1726003838509,-388.111262,0.00038878,14]
[337738794,1726003838518,-432.766093,0.00038879,14]
[337738795,1726003838528,-432.766093,0.00038879,14]
[337738796,1726003838537,-432.766093,0.00038879,14]
[337738797,1726003838546,-432.766093,0.00038879,14]
[337738798,1726003838555,-432.766093,0.00038879,14]
[337738799,1726003838564,-432.766093,0.00038879,14]
[337738800,1726003838573,-432.766093,0.00038879,14]
[337738801,1726003838584,-388.111262,0.00038879,14]
[337738802,1726003838593,-432.766093,0.00038879,14]
[337738803,1726003838601,-388.111262,0.00038879,14]
[337738804,1726003838611,-388.111262,0.00038879,14]
[337738805,1726003838620,-388.111262,0.00038879,14]
[337738806,1726003838630,-388.111262,0.00038879,14]
[337738807,1726003838639,-388.111262,0.00038879,14]
[337738808,1726003838649,-388.111262,0.00038879,14]
[337738809,1726003838658,-388.111262,0.00038879,14]
[337738810,1726003838667,-863.533871,0.00038888,14]
[337738811,1726003838676,-863.533871,0.00038888,14]
[337738812,1726003838687,-863.533871,0.00038888,14]
[337738813,1726003838696,-432.766093,0.00038888,14]
[337738814,1726003838707,-432.766093,0.00038888,14]
[337738815,1726003838716,-388.111262,0.00038888,14]
[337738816,1726003838725,-388.111262,0.00038888,14]
[337738817,1726003838735,-151.0,0.00038888,14]
[337738818,1726003838747,-163.753555,0.00038888,14]
[337738819,1726003838756,-163.753555,0.00038888,14]
[337738820,1726003838765,-151.0,0.00038888,14]
[337738821,1726003838774,-170.636032,0.00038888,14]
[337738822,1726003838784,-170.636032,0.00038888,14]
[337738823,1726003838793,-170.636032,0.00038888,14]
[337738824,1726003838802,-170.636032,0.00038888,14]
[337738825,1726003838811,-151.0,0.00038888,2]
[337738826,1726003838822,-170.636032,0.00038888,14]
[337738827,1726003838832,-170.636032,0.00038888,14]
[337738828,1726003838841,-190.560282,0.00038888,14]
[337738829,1726003838851,-190.560282,0.00038888,14]
[337738830,1726003838860,-151.0,0.00038888,14]
[337738831,1726003838869,-863.533871,0.00038889,14]
[337738832,1726003838879,-700.0,0.00038889,7]
[337738833,1726003838888,-432.766093,0.00038889,14]
[337738834,1726003838898,-432.766093,0.00038889,14]
[337738835,1726003838908,-432.766093,0.00038889,14]
[337738836,1726003838918,-388.111262,0.00038889,14]
[337738837,1726003838927,-432.766093,0.00038889,14]
[337738838,1726003838936,-388.111262,0.00038889,14]
[337738839,1726003838946,-388.111262,0.00038889,14]
[337738840,1726003838955,-388.111262,0.00038889,14]
[337738841,1726003838964,-151.0,0.00038889,14]
[337738842,1726003838973,-151.0,0.00038889,14]
[337738843,1726003838983,-151.0,0.00038889,14]
[337738844,1726003838991,-163.753555,0.00038889,14]
[337738845,1726003839000,-163.753555,0.00038889,14]
[337738846,1726003839010,-163.753555,0.00038889,14]
[337738847,1726003839020,-163.753555,0.00038889,14]
[337738848,1726003839030,-163.753555,0.00038889,14]
[337738849,1726003839040,-163.753555,0.00038889,14]
[337738850,1726003839051,-151.0,0.00038889,14]
[337738851,1726003839063,-151.0,0.00038889,14]
[337738852,1726003839072,-151.0,0.00038889,14]
[337738853,1726003839081,-170.636032,0.00038889,14]
[337738854,1726003839090,-151.0,0.00038889,2]
[337738855,1726003839099,-151.0,0.00038889,2]
[337738856,1726003839109,-170.636032,0.00038889,14]
[337738857,1726003839118,-151.303756,0.00038889,2]
[337738858,1726003839127,-190.560282,0.00038889,14]
[337738859,1726003839137,-190.560282,0.00038889,14]
[337738860,1726003839146,-190.560282,0.00038889,14]
[337738861,1726003839155,-190.560282,0.00038889,14]
[337738862,1726003839165,-190.560282,0.00038889,14]
[337738863,1726003839175,-190.560282,0.00038889,14]
[337738864,1726003839184,-151.0,0.00038889,14]
[337738865,1726003839193,-151.0,0.00038889,14]
[337738866,1726003839203,-151.0,0.00038889,14]
[337738867,1726003839214,-12179.35,0.0003889,3]
[337738868,1726003839223,-5989.15817997,0.0003889,3]
[337738879,1726003840430,-4160.29182003,0.0003889,3]
[337738880,1726003840440,-863.533871,0.0003889,14]
[337738881,1726003840450,-432.766093,0.0003889,14]
[337738882,1726003840460,-328.27652144,0.0003889,14]
[337738883,1726003840578,-104.48957156,0.0003889,14]
[337738885,1726003840588,-388.111262,0.0003889,14]
[337738887,1726003840597,-388.111262,0.0003889,14]
[337738889,1726003840607,-600.0,0.0003889,7]
[337738891,1726003840616,-151.0,0.0003889,14]
[337738893,1726003840626,-163.753555,0.0003889,14]
[337738895,1726003840635,-163.753555,0.0003889,14]
[337738897,1726003840645,-151.0,0.0003889,14]
[337738899,1726003840654,-170.636032,0.0003889,14]
[337738901,1726003840664,-170.636032,0.0003889,14]
[337738903,1726003840674,-190.560282,0.0003889,14]
[337738905,1726003840683,-190.560282,0.0003889,14]
[337738907,1726003840693,-151.0,0.0003889,14]
[337738909,1726003840704,-163.753555,0.00038898,14]
[337738911,1726003840715,-163.753555,0.00038898,14]
[337738913,1726003840727,-151.0,0.00038898,14]
[337738915,1726003840740,-190.560282,0.00038898,14]
[337738917,1726003840750,-190.560282,0.00038898,14]
[337738919,1726003840760,-151.0,0.00038898,14]
[337738921,1726003840770,-187.707032,0.00038899,14]
[337738923,1726003840780,-187.707032,0.00038899,14]
[337738925,1726003840789,-187.707032,0.00038899,14]
[337738927,1726003840799,-187.707032,0.00038899,14]
[337738929,1726003840809,-863.533871,0.00038899,14]
[337738931,1726003840820,-863.533871,0.00038899,14]
[337738933,1726003840830,-863.533871,0.00038899,14]
[337738935,1726003840839,-863.533871,0.00038899,14]
[337738937,1726003840850,-432.766093,0.00038899,14]
[337738939,1726003840860,-432.766099,0.00038899,14]
[337738941,1726003840871,-388.111262,0.00038899,14]
[337738943,1726003840880,-388.111263,0.00038899,14]
[337738945,1726003840890,-163.753555,0.00038899,14]
[337738947,1726003840901,-163.753555,0.00038899,14]
[337738949,1726003840911,-163.753555,0.00038899,14]
[337738951,1726003840922,-66.56086597,0.00038899,14]
[337739220,1726003844716,-8457.88,0.0003889,3]
[337739221,1726003844728,-97.19268903,0.00038899,14]
[337739222,1726003844740,-163.753555,0.00038899,14]
[337739223,1726003844751,-163.753555,0.00038899,14]
[337739224,1726003844763,-163.753555,0.00038899,14]
[337739225,1726003844774,-163.753561,0.00038899,14]
[337739226,1726003844787,-170.636032,0.00038899,14]
[337739227,1726003844798,-170.636032,0.00038899,14]
[337739228,1726003844809,-170.636032,0.00038899,14]
[337739229,1726003844821,-170.636032,0.00038899,14]
[337739230,1726003844833,-190.560282,0.00038899,14]
[337739231,1726003844844,-190.560282,0.00038899,14]
[337739232,1726003844855,-190.560282,0.00038899,14]
[337739233,1726003844866,-190.560282,0.00038899,14]
[337739234,1726003844878,-190.560282,0.00038899,14]
[337739235,1726003844890,-190.560282,0.00038899,14]
[337739236,1726003844901,-190.560282,0.00038899,14]
[337739237,1726003844913,-190.56028,0.00038899,14]
[337739238,1726003844930,-999.0,0.00038899,2]
[337739239,1726003844943,-151.0,0.00038899,14]
[337739240,1726003844956,-500.0,0.00038899,15]
[337739241,1726003844969,-387.06882593,0.00038899,15]
[337739242,1726003844982,-500.0,0.00038899,15]
[337739243,1726003844995,-500.0,0.00038899,15]
[337739244,1726003845009,-263.88120504,0.00038899,15]
[337739251,1726003847703,-236.11879496,0.00038899,15]
[337739252,1726003847713,-500.0,0.00038899,15]
[337739253,1726003847723,-500.0,0.00038899,15]
[337739254,1726003847732,-283.24510018,0.00038899,15]
[337739255,1726003847746,-500.0,0.00038899,15]
[337739256,1726003847755,-500.0,0.00038899,15]
[337739257,1726003847765,-500.0,0.00038899,15]
[337739258,1726003847775,-500.0,0.00038899,15]
[337739259,1726003847787,-500.0,0.00038899,15]
[337739260,1726003847797,-500.0,0.00038899,15]
[337739261,1726003847807,-500.0,0.00038899,15]
[337739262,1726003847817,-500.0,0.00038899,15]
[337739263,1726003847827,-500.0,0.00038899,15]
[337739264,1726003847836,-500.0,0.00038899,15]
[337739265,1726003847846,-500.0,0.00038899,15]
[337739266,1726003847856,-500.0,0.00038899,15]
[337739267,1726003847866,-500.0,0.00038899,15]
[337739268,1726003847875,-621.70316051,0.00038899,15]
[337739269,1726003847885,-500.0,0.00038899,15]
[337739270,1726003847896,-500.0,0.00038899,15]
[337739271,1726003847906,-500.0,0.00038899,15]
[337739272,1726003847916,-638.18678565,0.00038899,15]
[337739273,1726003847926,-2653.72761893,0.000389,31]
[337739274,1726003847935,-10654.0965351,0.000389,7]
[337739275,1726003848239,-2046.776688,0.000389,7]
[337739276,1726003930366,185.610545,0.00033401,2]
[337739290,1726004947130,-163.310797,0.00017808,2]
[337739291,1726004947153,-200.0,0.000215,7]
[337739292,1726004947175,-185.610545,0.00033955,2]
[337739293,1726004956134,-153.63,0.000354,31]
[337739294,1726004956158,-153.63,0.000354,31]
[337739397,1726005038732,-500.0,0.00037573,7]
[337739399,1726005038743,-153.07231703,0.0003759,22]
[337739400,1726005038753,-500.0,0.00037596,7]
[337739402,1726005038763,-500.0,0.00037715,7]
[337739404,1726005038773,-500.0,0.00037722,7]
[337739405,1726005038783,-1218.52216619,0.00037927,2]
[337739407,1726005038792,-500.0,0.00037959,7]
[337739409,1726005038801,-182.05,0.0003799,3]
[337739411,1726005038811,-546.15,0.0003799,3]
[337739413,1726005038820,-203.27280603,0.00037999,15]
[337739414,1726005038829,-4313.84425962,0.00038,14]
[337739455,1726005040678,-16391.08539372,0.00038,14]
[337739457,1726005040690,-28128.9883879,0.00038,14]
[337739900,1726005951102,-163.310797,0.00017808,2]
[337739901,1726005951127,-311.0,0.00035057,2]
[337739902,1726005951151,-2934.27434941,0.00035057,2]
[337739904,1726006042098,-623.466,0.00035057,2]
[337739906,1726006150122,-14594.1709719,0.00035173,2]
[337739907,1726006150146,-163.4498944,0.00035214,2]
[337739908,1726006150171,-280.206077,0.00035239,2]
[337739909,1726006150194,-153.64,0.000354,31]
[337739942,1726006231755,-465.0,0.00037241,2]
[337739944,1726006231767,-500.0,0.00037561,7]
[337739946,1726006231776,-153.07231703,0.0003759,22]
[337739948,1726006231785,-500.0,0.00037617,7]
[337739950,1726006231795,-500.0,0.00037706,7]
[337739952,1726006231805,-1066.20689546,0.00037943,2]
[337739954,1726006231814,-500.0,0.00037972,7]
[337739956,1726006231823,-500.0,0.00037974,7]
[337739958,1726006231834,-14558.83818592,0.00038,14]
[337740045,1726006237823,-1301.0641686,0.00038,14]
[337740046,1726006237858,-1519.70444288,0.00038,14]
[337740049,1726006239844,-24095.42690231,0.00038,14]
[337740050,1726006239854,-500.0,0.00038043,7]
[337740051,1726006239864,-153.64,0.000383,31]
[337740052,1726006239873,-153.64,0.000383,31]
[337740053,1726006239882,-153.0,0.00038411,2]
[337740054,1726006239893,-500.0,0.00038446,7]
[337740055,1726006239903,-500.0,0.00038681,7]
[337740056,1726006239913,-1000.0,0.000388,2]
[337740057,1726006239929,-500.0,0.00038812,7]
[337740058,1726006239939,-500.0,0.00038886,7]
[337740059,1726006239948,-182.05,0.00038889,3]
[337740060,1726006239957,-546.15,0.00038889,3]
[337740061,1726006239966,-3560.16799453,0.0003889,3]
[337740062,1726006239978,-3488.06200547,0.0003889,3]
[337740063,1726006239987,-500.0,0.00038891,7]
[337740064,1726006239996,-1326.86380947,0.00038899,31]
[337740065,1726006240005,-999.0,0.00038899,2]
[337740066,1726006240014,-2695.32451631,0.000389,31]
[337740067,1726006240023,-17727.97498521,0.000389,7]
[337740077,1726006242717,-2116.64303488,0.0003889,3]
[337740078,1726006242815,-3752.45492092,0.0003889,3]
[337740083,1726006245862,-4.4320442,0.0003889,3]
[337740084,1726006245871,-823.8872754,0.000389,7]
[337740085,1726006245941,-55865.49618886,0.000389,7]
[337740118,1726007133133,-163.3108,0.00017808,2]
[337740119,1726007133156,-235.16004099,0.00032859,2]
[337740120,1726007133178,-2006.55898687,0.00034831,120]
[337740121,1726007133201,-166.6666675,0.00035347,2]
[337740122,1726007133227,-153.66,0.000354,31]
[337740123,1726007133248,-161.555281,0.0003576,2]
[337740124,1726007133271,-163.449894,0.00036153,2]
[337740125,1726007133293,-155.93230733,0.00036802,2]
[337740126,1726007133315,-500.0,0.00037563,7]
[337740127,1726007133335,-153.07231703,0.0003759,22]
[337740128,1726007133357,-500.0,0.00037782,7]
[337740129,1726007133378,-160.0,0.00038022,3]
[337740130,1726007133402,-28.49225826,0.00038037,2]
[337740133,1726007249096,-153.66,0.000354,31]
[337740134,1726007249118,-500.0,0.00037687,7]
[337740135,1726007249139,-6.1255054,0.00037767,7]
[337740136,1726007252394,-493.8744946,0.00037767,7]
[337740137,1726007252417,-500.0,0.00037772,7]
[337740138,1726007252441,-500.0,0.00037784,7]
[337740139,1726007252464,-56.1721054,0.00037861,7]
[337740145,1726007348317,-750.39852183,0.00035,2]
[337740146,1726007348338,-505.98772462,0.00035,7]
[337740147,1726007364116,-5388.20330661,0.000355,30]
[337740148,1726007365122,-1611.79669339,0.000355,30]
[337740149,1726007398572,4577.17018615,0.00035,40]
[337740150,1726007398594,422.82981385,0.00035,40]
[337740210,1726007440022,-336.18520719,0.00037,120]
[337740211,1726007440031,-416.0,0.000375,2]
[337740212,1726007440041,-500.0,0.00037731,7]
[337740213,1726007440050,-443.8278946,0.00037861,7]
[337740214,1726007440059,-500.0,0.00037974,7]
[337740215,1726007440068,-197.0,0.00038,2]
[337740216,1726007440077,-500.0,0.00038014,7]
[337740217,1726007440087,-134.95763574,0.00038037,2]
[337740218,1726007440096,-500.0,0.00038053,7]
[337740219,1726007440105,-153.0,0.00038082,2]
[337740220,1726007440114,-153.66,0.000382,31]
[337740221,1726007440124,-153.66,0.000382,31]
[337740222,1726007440133,-500.0,0.00038289,7]
[337740223,1726007440143,-500.0,0.00038422,7]
[337740224,1726007440152,-500.0,0.00038532,7]
[337740225,1726007440161,-500.0,0.00038548,7]
[337740226,1726007440170,-153.0,0.00038575,2]
[337740227,1726007440179,-202.45257769,0.00038774,7]
[337740228,1726007440189,-932.93103351,0.000388,2]
[337740229,1726007440199,-500.0,0.00038818,7]
[337740230,1726007440208,-1000.0,0.00038824,2]
[337740231,1726007440219,-731.85,0.0003889,3]
[337740232,1726007440229,-150.01,0.00038898,2]
[337740233,1726007440239,-1767.3536283,0.00038898,2]
[337740234,1726007440459,-663.43190474,0.000389,31]
[337740235,1726007440490,-500.0,0.000389,30]
[337740236,1726007440499,-14591.57271564,0.000389,7]
[337740237,1726007440638,3070.70763498,0.00035,50]
[337740238,1726007440660,3506.43735204,0.00035,50]
[337740239,1726007440680,3422.85501298,0.00035,50]
[337740264,1726007443014,-2551.59584693,0.0003889,3]
[337740309,1726007460233,163.310799,0.00017808,2]
[337740310,1726007477138,700.0,0.00035,20]
[337740360,1726008436117,-163.310799,0.00017808,2]
[337740361,1726008436139,-90.66086051,0.00035625,2]
[337740364,1726008609403,163.310799,0.00017808,2]
[337740365,1726008616663,507.259382,0.00035,50]
[337740410,1726008632187,-94.94968449,0.00035625,2]
[337740411,1726008632196,-1000.0,0.00037,14]
[337740412,1726008632206,-153.07231703,0.0003759,22]
[337740413,1726008632215,-500.0,0.00037624,7]
[337740414,1726008632226,-1698.18960577,0.00038,2]
[337740415,1726008632241,-415.18150823,0.00038,2]
[337740416,1726008632251,-1000.0,0.00038,15]
[337740417,1726008632261,-400.0,0.00038081,2]
[337740418,1726008632270,-306.678328,0.00038082,2]
[337740419,1726008632280,-153.0,0.00038082,2]
[337740420,1726008632291,-153.0,0.00038082,2]
[337740421,1726008632301,-23.24016377,0.00038082,2]
[337740452,1726008638196,-543.82654554,0.00036,120]
[337740467,1726008640328,-693.52752523,0.00036,120]
[337740481,1726008643101,-139.38932457,0.00036,120]
[337740487,1726008646309,-71.55994596,0.00036,120]
[337740495,1726009547148,-151.0,0.0003,120]
[337740496,1726009547173,-151.0,0.0003,120]
[337740497,1726009547199,-151.0,0.00033014,120]
[337740498,1726009547224,-263.76065995,0.00033595,2]
[337740499,1726009547248,-185.610545,0.00034001,2]
[337740500,1726009547274,-151.0,0.00034274,120]
[337740501,1726009547300,-153.66,0.000354,31]
[337740502,1726009547322,-189.963564,0.00035616,120]
[337740503,1726009547343,-1801.49808439,0.00036,31]
[337740504,1726009547365,-461.23157053,0.00036,120]
[337740506,1726009653123,-163.3107999,0.00017808,2]
[337740507,1726009653150,-3904.63392222,0.00036,120]
[337740511,1726009772110,-169.7909392,0.00035543,2]
[337740571,1726009838508,-189.963564,0.00035616,120]
[337740573,1726009838518,-46.8815439,0.00036,120]
[337740595,1726009840392,-4138.94962205,0.00036,120]
[337740597,1726009840402,-151.0,0.00036027,120]
[337740599,1726009840413,-153.07231704,0.0003759,22]
[337740600,1726009840423,-153.0,0.00037637,2]
[337740602,1726009840433,-208.3247076,0.00037637,2]
[337740604,1726009840443,-292.5847847,0.00037637,2]
[337740606,1726009840454,-153.0,0.00037637,2]
[337740608,1726009840464,-208.3247076,0.00037637,2]
[337740610,1726009840475,-153.0,0.00037637,2]
[337740612,1726009840485,-153.0,0.00037637,2]
[337740613,1726009840495,-208.3247076,0.00037637,2]
[337740614,1726009840505,-153.0,0.00037637,2]
[337740615,1726009840516,-208.3247076,0.00037637,2]
[337740616,1726009840525,-153.0,0.00037637,2]
[337740617,1726009840535,-153.0,0.00037637,2]
[337740618,1726009840546,-207.8510516,0.00037637,2]
[337740619,1726009840556,-153.0,0.00037637,2]
[337740620,1726009840566,-208.3247076,0.00037637,2]
[337740621,1726009840576,-153.0,0.00037637,2]
[337740622,1726009840586,-208.3247076,0.00037637,2]
[337740623,1726009840597,-153.0,0.00037637,2]
[337740624,1726009840607,-416.4855244,0.00037637,2]
[337740625,1726009840617,-153.0,0.00037637,2]
[337740626,1726009840627,-208.3247076,0.00037637,2]
[337740627,1726009840638,-153.0,0.00037637,2]
[337740628,1726009840648,-208.3247076,0.00037637,2]
[337740629,1726009840658,-208.3247076,0.00037637,2]
[337740630,1726009840668,-153.0,0.00037637,2]
[337740631,1726009840678,-208.3247076,0.00037637,2]
[337740632,1726009840688,-500.0,0.00037842,7]
[337740633,1726009840699,-500.0,0.00037959,7]
[337740634,1726009840710,-900.7490422,0.00038,31]
[337740635,1726009840719,-8957.47597021,0.00038,120]
[337740636,1726009840733,-1042.52402979,0.00038,120]
[337740637,1726009840745,-5000.0,0.00038,10]
[337740638,1726009840757,-500.0,0.00038014,7]
[337740639,1726009840767,-500.0,0.0003808,7]
[337740640,1726009840778,-129.75983623,0.00038082,2]
[337740641,1726009840790,-153.0,0.00038082,2]
[337740642,1726009840799,-153.0,0.00038082,2]
[337740643,1726009840809,-153.0,0.00038082,2]
[337740644,1726009840819,-153.0,0.00038082,2]
[337740645,1726009840828,-153.0,0.00038082,2]
[337740646,1726009840838,-308.5582205,0.00038082,2]
[337740647,1726009840849,-500.0,0.00038084,7]
[337740648,1726009840860,-500.0,0.00038175,7]
[337740649,1726009840870,-153.66,0.000382,31]
[337740650,1726009840880,-153.66,0.000382,31]
[337740651,1726009840890,-500.0,0.00038297,7]
[337740652,1726009840900,-500.0,0.00038474,7]
[337740653,1726009840910,-500.0,0.00038494,7]
[337740654,1726009840920,-160.0,0.00038508,3]
[337740655,1726009840929,-151.0,0.00038548,120]
[337740656,1726009840940,-500.0,0.00038624,7]
[337740657,1726009840950,-1000.0,0.00038634,2]
[337740658,1726009840959,-1124.3082805,0.0003865,2]
[337740659,1726009840974,-1000.0,0.00038694,2]
[337740660,1726009840985,-232.2975734,0.00038767,2]
[337740661,1726009840996,-416.2669517,0.00038767,2]
[337740662,1726009841006,-8446.41,0.00038778,3]
[337740663,1726009841017,-219.62,0.0003878,3]
[337740664,1726009841028,-658.91,0.0003878,3]
[337740665,1726009841038,-10135.7,0.0003878,3]
[337740666,1726009841048,-151.0,0.0003878,14]
[337740667,1726009841058,-153.146467,0.0003878,14]
[337740668,1726009841068,-153.146467,0.0003878,14]
[337740669,1726009841077,-151.0,0.0003878,14]
[337740670,1726009841087,-258.377021,0.0003878,14]